fUSD/lending_fUSD_20250120
["ID","MTS","AMOUNT","RATE_DAILY","PERIOD"]
[349655151,1737359434142,-500.0,0.00019498,2]
[349655152,1737359434152,-500.0,0.00019498,2]
[349655153,1737359434162,-500.0,0.00019498,2]
[349655154,1737359434172,-776.12,0.00019498,2]
[349655155,1737359434181,-500.0,0.00019498,2]
[349655156,1737359434191,-798.28,0.00019498,2]
[349655157,1737359434200,-371.59036027,0.00019498,2]
[349655158,1737359434210,-201.34172399,0.00019498,2]
[349655159,1737359434220,-500.0,0.00019498,2]
[349655160,1737359434229,-500.0,0.00019498,2]
[349655161,1737359434387,-271.15385731,0.00019498,2]
[349655162,1737359434404,-500.0,0.00019498,2]
[349655163,1737359434414,-500.0,0.00019498,2]
[349655164,1737359434424,-500.0,0.00019498,2]
[349655165,1737359434435,-500.0,0.00019498,2]
[349655166,1737359434445,-500.0,0.00019498,2]
[349655167,1737359434454,-500.0,0.00019498,2]
[349655168,1737359434464,-621.6,0.00019498,2]
[349655169,1737359434475,-500.0,0.00019498,2]
[349655170,1737359434484,-500.0,0.00019498,2]
[349655171,1737359434494,-500.0,0.00019498,2]
[349655172,1737359434504,-540.26,0.00019498,2]
[349655173,1737359434514,-505.35498098,0.00019498,2]
[349655174,1737359434528,-500.0,0.00019498,2]
[349655175,1737359434538,-345.25480929,0.00019498,2]
[349655176,1737359434549,-1138.23,0.00019498,2]
[349655177,1737359434559,-500.0,0.00019498,2]
[349655178,1737359434569,-500.0,0.00019498,2]
[349655179,1737359434583,-500.0,0.00019498,2]
[349655180,1737359434593,-503.96,0.00019498,2]
[349655181,1737359434602,-873.64,0.00019498,2]
[349655182,1737359434612,-515.55711945,0.00019498,2]
[349655183,1737359434622,-500.0,0.00019498,2]
[349655184,1737359434632,-168.51373058,0.00019498,2]
[349655185,1737359434642,-500.0,0.00019498,2]
[349655186,1737359434651,-500.0,0.00019498,2]
[349655187,1737359434662,-501.58199441,0.00019498,2]
[349655188,1737359434672,-500.0,0.00019498,2]
[349655189,1737359434682,-500.0,0.00019498,2]
[349655190,1737359434691,-500.0,0.00019498,2]
[349655191,1737359434701,-500.0,0.00019498,2]
[349655192,1737359434711,-500.0,0.00019498,2]
[349655193,1737359434720,-500.0,0.00019498,2]
[349655194,1737359434730,-1081.27,0.00019498,2]
[349655195,1737359434740,-500.0,0.00019498,2]
[349655196,1737359434750,-500.0,0.00019498,2]
[349655197,1737359434759,-500.0,0.00019498,2]
[349655198,1737359434768,-500.0,0.00019498,2]
[349655199,1737359434778,-1328.3,0.00019498,2]
[349655200,1737359434788,-500.0,0.00019498,2]
[349655201,1737359434798,-501.17728627,0.00019498,2]
[349655202,1737359434807,-500.0,0.00019498,2]
[349655203,1737359434817,-264.05381495,0.00019498,2]
[349655204,1737359434828,-500.0,0.00019498,2]
[349655205,1737359434837,-500.0,0.00019498,2]
[349655206,1737359434848,-500.0,0.00019498,2]
[349655207,1737359434858,-538.46391112,0.00019498,2]
[349655208,1737359434867,-500.0,0.00019498,2]
[349655209,1737359434877,-500.0,0.00019498,2]
[349655210,1737359434887,-500.0,0.00019498,2]
[349655211,1737359434896,-500.0,0.00019498,2]
[349655212,1737359434905,-500.0,0.00019498,2]
[349655213,1737359434915,-500.0,0.00019498,2]
[349655214,1737359434924,-500.0,0.00019498,2]
[349655215,1737359434933,-500.0,0.00019498,2]
[349655216,1737359434943,-500.0,0.00019498,2]
[349655217,1737359434951,-4201.07,0.00019498,2]
[349655218,1737359434961,-500.0,0.00019498,2]
[349655219,1737359434971,-500.0,0.00019498,2]
[349655220,1737359434981,-500.0,0.00019498,2]
[349655221,1737359434990,-500.0,0.00019498,2]
[349655222,1737359435000,-736.71,0.00019498,2]
[349655223,1737359435010,-500.0,0.00019498,2]
[349655224,1737359435020,-500.0,0.00019498,2]
[349655225,1737359435031,-500.0,0.00019498,2]
[349655226,1737359435042,-500.0,0.00019498,2]
[349655227,1737359435051,-827.491924,0.00019498,2]
[349655228,1737359435061,-500.0,0.00019498,2]
[349655229,1737359435070,-500.0,0.00019498,2]
[349655230,1737359435083,-500.0,0.00019498,2]
[349655231,1737359435093,-709.33,0.00019498,2]
[349655232,1737359435103,-500.0,0.00019498,2]
[349655233,1737359435113,-500.0,0.00019498,2]
[349655234,1737359435123,-500.0,0.00019498,2]
[349655235,1737359435134,-632.12,0.00019498,2]
[349655236,1737359435145,-502.12822178,0.00019498,2]
[349655237,1737359435156,-500.0,0.00019498,2]
[349655238,1737359435167,-805.39,0.00019498,2]
[349655239,1737359435178,-500.0,0.00019498,2]
[349655240,1737359435190,-500.0,0.00019498,2]
[349655241,1737359435200,-500.0,0.00019498,2]
[349655242,1737359435211,-551.72308043,0.00019498,2]
[349655243,1737359435221,-500.0,0.00019498,2]
[349655244,1737359435231,-1796.622825,0.00019498,2]
[349655245,1737359435240,-717.32,0.00019498,2]
[349655246,1737359435250,-500.0,0.00019498,2]
[349655247,1737359435259,-500.0,0.00019498,2]
[349655248,1737359435269,-500.0,0.00019498,2]
[349655249,1737359435279,-500.0,0.00019498,2]
[349655250,1737359435289,-217.07672434,0.00019498,2]
[349655251,1737359435298,-500.0,0.00019498,2]
[349655252,1737359435308,-155.929331,0.00019498,2]
[349655253,1737359435318,-500.0,0.00019498,2]
[349655254,1737359435332,-2283.23,0.00019498,2]
[349655255,1737359435342,-500.0,0.00019498,2]
[349655256,1737359435352,-2234.39,0.00019498,2]
[349655257,1737359435362,-516.25286791,0.00019498,2]
[349655258,1737359435372,-500.0,0.00019498,2]
[349655259,1737359435381,-512.02591586,0.00019498,2]
[349655260,1737359435391,-500.0,0.00019498,2]
[349655261,1737359435405,-500.0,0.00019498,2]
[349655262,1737359435414,-507.10074861,0.00019498,2]
[349655263,1737359435423,-618.5,0.00019498,2]
[349655264,1737359435434,-500.0,0.00019498,2]
[349655265,1737359435444,-628.21952044,0.00019498,2]
[349655266,1737359435453,-500.0,0.00019498,2]
[349655267,1737359435463,-500.0,0.00019498,2]
[349655268,1737359435472,-500.0,0.00019498,2]
[349655269,1737359435483,-547.72,0.00019498,2]
[349655270,1737359435492,-506.31274896,0.00019498,2]
[349655271,1737359435501,-500.0,0.00019498,2]
[349655272,1737359435510,-500.0,0.00019498,2]
[349655273,1737359435520,-577.42,0.00019498,2]
[349655274,1737359435529,-157.129537,0.00019498,2]
[349655275,1737359435538,-500.0,0.00019498,2]
[349655276,1737359435547,-200.0,0.00019498,2]
[349655277,1737359435557,-500.0,0.00019498,2]
[349655278,1737359435566,-410.91632481,0.00019498,2]
[349655279,1737359435577,-1588.31,0.00019498,2]
[349655280,1737359435586,-502.95726386,0.00019498,2]
[349655281,1737359435595,-506.64150504,0.00019498,2]
[349655282,1737359435605,-1036.42,0.00019498,2]
[349655283,1737359435614,-500.0,0.00019498,2]
[349655284,1737359435623,-515.62567333,0.00019498,2]
[349655285,1737359435633,-800.07,0.00019498,2]
[349655286,1737359435642,-1680.43,0.00019498,2]
[349655287,1737359435652,-766.22,0.00019498,2]
[349655288,1737359435661,-500.0,0.00019498,2]
[349655289,1737359435670,-500.0,0.00019498,2]
[349655290,1737359435679,-533.72231095,0.00019498,2]
[349655291,1737359435688,-500.0,0.00019498,2]
[349655292,1737359435697,-500.0,0.00019498,2]
[349655293,1737359435707,-503.10646176,0.00019498,2]
[349655294,1737359435716,-862.26,0.00019498,2]
[349655295,1737359435725,-504.0154725,0.00019498,2]
[349655296,1737359435735,-681.05,0.00019498,2]
[349655297,1737359435744,-500.0,0.00019498,2]
[349655298,1737359435754,-651.15,0.00019498,2]
[349655299,1737359435764,-526.75,0.00019498,2]
[349655300,1737359435773,-500.0,0.00019498,2]
[349655301,1737359435782,-500.0,0.00019498,2]
[349655302,1737359435792,-500.0,0.00019498,2]
[349655303,1737359435801,-500.0,0.00019498,2]
[349655304,1737359435811,-1742.5,0.00019498,2]
[349655305,1737359435820,-988.26,0.00019498,2]
[349655306,1737359435831,-500.0,0.00019498,2]
[349655307,1737359435841,-500.0,0.00019498,2]
[349655308,1737359435850,-500.0,0.00019498,2]
[349655309,1737359435860,-554.29,0.00019498,2]
[349655310,1737359435869,-500.0,0.00019498,2]
[349655311,1737359435878,-457.22722993,0.00019498,2]
[349655312,1737359435888,-500.0,0.00019498,2]
[349655313,1737359435897,-702.59,0.00019498,2]
[349655314,1737359435906,-500.0,0.00019498,2]
[349655315,1737359435916,-500.0,0.00019498,2]
[349655316,1737359435925,-500.0,0.00019498,2]
[349655317,1737359435935,-409.8322991,0.00019498,2]
[349655318,1737359435944,-500.0,0.00019498,2]
[349655319,1737359435953,-500.0,0.00019498,2]
[349655320,1737359435963,-3292.27,0.00019498,2]
[349655321,1737359435973,-1170.41,0.00019498,2]
[349655322,1737359435982,-2063.8,0.00019498,2]
[349655323,1737359435993,-209.11778498,0.00019498,2]
[349655324,1737359436003,-500.0,0.00019498,2]
[349655325,1737359436013,-500.0,0.00019498,2]
[349655326,1737359436023,-500.0,0.00019498,2]
[349655327,1737359436034,-500.0,0.00019498,2]
[349655328,1737359436044,-3539.58,0.00019498,2]
[349655329,1737359436053,-551.16912667,0.00019498,2]
[349655330,1737359436063,-500.0,0.00019498,2]
[349655331,1737359436072,-500.0,0.00019498,2]
[349655332,1737359436083,-500.0,0.00019498,2]
[349655333,1737359436092,-2023.85,0.00019498,2]
[349655334,1737359436102,-500.0,0.00019498,2]
[349655335,1737359436111,-500.0,0.00019498,2]
[349655336,1737359436122,-500.0,0.00019498,2]
[349655337,1737359436131,-502.16021359,0.00019498,2]
[349655338,1737359436140,-505.82467631,0.00019498,2]
[349655339,1737359436150,-500.0,0.00019498,2]
[349655340,1737359436159,-500.0,0.00019498,2]
[349655341,1737359436170,-1075.27,0.00019498,2]
[349655342,1737359436179,-475.0,0.00019498,2]
[349655343,1737359436189,-500.0,0.00019498,2]
[349655344,1737359436198,-500.0,0.00019498,2]
[349655345,1737359436208,-1038.42,0.00019498,2]
[349655346,1737359436218,-514.06828209,0.00019498,2]
[349655347,1737359436227,-500.0,0.00019498,2]
[349655348,1737359436237,-500.0,0.00019498,2]
[349655349,1737359436246,-500.0,0.00019498,2]
[349655350,1737359436256,-838.98,0.00019498,2]
[349655351,1737359436265,-500.0,0.00019498,2]
[349655352,1737359436275,-5490.4,0.00019498,2]
[349655353,1737359436284,-500.0,0.00019498,2]
[349655354,1737359436293,-500.0,0.00019498,2]
[349655355,1737359436302,-500.0,0.00019498,2]
[349655356,1737359436311,-2548.07,0.00019498,2]
[349655357,1737359436321,-500.0,0.00019498,2]
[349655358,1737359436334,-500.0,0.00019498,2]
[349655359,1737359436343,-1422.79,0.00019498,2]
[349655360,1737359436353,-233.16889737,0.00019498,2]
[349655361,1737359436364,-500.0,0.00019498,2]
[349655362,1737359436374,-458.61931659,0.00019498,2]
[349655363,1737359436383,-500.0,0.00019498,2]
[349655364,1737359436392,-500.0,0.00019498,2]
[349655365,1737359436402,-500.0,0.00019498,2]
[349655366,1737359436414,-500.0,0.00019498,2]
[349655367,1737359436424,-500.0,0.00019498,2]
[349655368,1737359436433,-500.0,0.00019498,2]
[349655369,1737359436442,-2090.87,0.00019498,2]
[349655370,1737359436452,-572.86,0.00019498,2]
[349655371,1737359436461,-500.0,0.00019498,2]
[349655372,1737359436470,-500.0,0.00019498,2]
[349655373,1737359436479,-193.92900084,0.00019498,2]
[349655374,1737359436490,-440.13,0.00019502,2]
[349655375,1737359436500,-548.48,0.00019504,30]
[349655376,1737359436508,-3766.8257,0.00019671,2]
[349655377,1737359436518,-3346.6115,0.00019671,2]
[349655378,1737359436527,-476.93045259,0.00019671,2]
[349655379,1737359436537,-563.66658582,0.00019676,2]
[349655380,1737359436546,-331.26,0.0001973,2]
[349655381,1737359436555,-316.820499,0.0001976,2]
[349655382,1737359436565,-500.0,0.00019771,2]
[349655383,1737359436575,-500.0,0.00019771,2]
[349655384,1737359436584,-500.0,0.00019771,2]
[349655385,1737359436593,-513.14982886,0.00019771,2]
[349655386,1737359436603,-500.0,0.00019771,2]
[349655387,1737359436612,-623.57,0.00019771,2]
[349655388,1737359436622,-500.0,0.00019771,2]
[349655389,1737359436631,-565.14,0.00019771,2]
[349655390,1737359436641,-504.75829731,0.00019771,2]
[349655391,1737359436650,-568.28,0.00019771,2]
[349655392,1737359436660,-500.0,0.00019771,2]
[349655393,1737359436669,-500.0,0.00019771,2]
[349655394,1737359436679,-500.0,0.00019771,2]
[349655395,1737359436688,-857.34,0.00019771,2]
[349655396,1737359436697,-500.0,0.00019771,2]
[349655397,1737359436706,-920.18,0.00019771,2]
[349655398,1737359436715,-500.0,0.00019771,2]
[349655399,1737359436725,-500.0,0.00019771,2]
[349655400,1737359436734,-904.7,0.00019771,2]
[349655401,1737359436745,-500.0,0.00019771,2]
[349655402,1737359436754,-500.0,0.00019771,2]
[349655403,1737359436764,-500.0,0.00019771,2]
[349655404,1737359436773,-500.0,0.00019771,2]
[349655405,1737359436782,-500.0,0.00019771,2]
[349655406,1737359436791,-500.0,0.00019771,2]
[349655407,1737359436801,-500.0,0.00019771,2]
[349655408,1737359436811,-547.03,0.00019771,2]
[349655409,1737359436820,-500.0,0.00019771,2]
[349655410,1737359436831,-500.0,0.00019771,2]
[349655411,1737359436841,-521.5,0.00019771,2]
[349655412,1737359436964,-674.17,0.00019771,2]
[349655413,1737359436974,-500.0,0.00019771,2]
[349655414,1737359436983,-986.2,0.00019771,2]
[349655415,1737359436993,-1227.55,0.00019771,2]
[349655416,1737359437002,-529.22238899,0.00019771,2]
[349655417,1737359437011,-1198.63,0.00019771,2]
[349655418,1737359437023,-500.0,0.00019771,2]
[349655419,1737359437032,-618.51,0.00019771,2]
[349655420,1737359437043,-584.8466734,0.00019771,2]
[349655421,1737359437054,-1043.44,0.00019771,2]
[349655422,1737359437065,-500.0,0.00019771,2]
[349655423,1737359437076,-500.0,0.00019771,2]
[349655424,1737359437086,-1295.79,0.00019771,2]
[349655425,1737359437095,-500.0,0.00019771,2]
[349655426,1737359437105,-891.15,0.00019771,2]
[349655427,1737359437116,-500.0,0.00019771,2]
[349655428,1737359437125,-500.0,0.00019771,2]
[349655429,1737359437134,-500.0,0.00019771,2]
[349655430,1737359437143,-1542.54,0.00019771,2]
[349655431,1737359437153,-500.0,0.00019771,2]
[349655432,1737359437163,-868.61,0.00019771,2]
[349655433,1737359437173,-1199.92,0.00019771,2]
[349655434,1737359437183,-1570.7,0.00019771,2]
[349655435,1737359437192,-502.63208877,0.00019771,2]
[349655436,1737359437201,-1171.48,0.00019771,2]
[349655437,1737359437210,-1179.9,0.00019771,2]
[349655438,1737359437219,-500.74571075,0.00019771,2]
[349655439,1737359437229,-501.02676383,0.00019771,2]
[349655440,1737359437239,-505.93362308,0.00019771,2]
[349655441,1737359437251,-500.0,0.00019771,2]
[349655442,1737359437261,-676.03,0.00019771,2]
[349655443,1737359437271,-500.0,0.00019771,2]
[349655444,1737359437280,-1089.01,0.00019771,2]
[349655445,1737359437288,-1779.33,0.00019771,2]
[349655446,1737359437297,-1123.51,0.00019771,2]
[349655447,1737359437306,-500.0,0.00019771,2]
[349655448,1737359437315,-824.59,0.00019771,2]
[349655449,1737359437326,-702.58,0.00019771,2]
[349655450,1737359437335,-1313.53,0.00019771,2]
[349655451,1737359437344,-500.0,0.00019771,2]
[349655452,1737359437354,-500.0,0.00019771,2]
[349655453,1737359437363,-918.87,0.00019771,2]
[349655454,1737359437372,-3920.49,0.00019771,2]
[349655455,1737359437382,-515.82059828,0.00019771,2]
[349655456,1737359437399,-502.26440636,0.00019771,2]
[349655457,1737359437408,-2465.53,0.00019771,2]
[349655458,1737359437417,-500.0,0.00019771,2]
[349655459,1737359437426,-500.0,0.00019771,2]
[349655460,1737359437435,-500.0,0.00019771,2]
[349655461,1737359437446,-500.0,0.00019771,2]
[349655462,1737359437455,-729.31,0.00019771,2]
[349655463,1737359437465,-4948.6,0.00019771,2]
[349655464,1737359437474,-500.0,0.00019771,2]
[349655465,1737359437484,-501.87557155,0.00019771,2]
[349655466,1737359437493,-500.0,0.00019771,2]
[349655467,1737359437503,-500.0,0.00019771,2]
[349655468,1737359437512,-500.0,0.00019771,2]
[349655469,1737359437521,-500.0,0.00019771,2]
[349655470,1737359437530,-500.0,0.00019771,2]
[349655471,1737359437539,-2166.66,0.00019771,2]
[349655472,1737359437549,-6379.85,0.00019771,2]
[349655473,1737359437558,-1054.71,0.00019771,2]
[349655474,1737359437567,-6445.67,0.00019771,2]
[349655475,1737359437579,-1445.58,0.00019771,2]
[349655476,1737359437589,-500.0,0.00019771,2]
[349655477,1737359437599,-2274.48,0.00019771,2]
[349655478,1737359437608,-1936.82,0.00019771,2]
[349655479,1737359437617,-1198.54,0.00019771,2]
[349655480,1737359437626,-2588.21,0.00019771,2]
[349655481,1737359437636,-1011.45,0.00019771,2]
[349655482,1737359437646,-2696.65,0.00019771,2]
[349655483,1737359437655,-500.0,0.00019771,2]
[349655484,1737359437664,-1258.39,0.00019771,2]
[349655485,1737359437674,-1079.0,0.00019771,2]
[349655486,1737359437683,-1982.52,0.00019771,2]
[349655487,1737359437692,-500.0,0.00019771,2]
[349655488,1737359437702,-1473.34,0.00019771,2]
[349655489,1737359437711,-779.6,0.00019771,2]
[349655490,1737359437720,-817.79,0.00019771,2]
[349655491,1737359437729,-4398.49,0.00019771,2]
[349655492,1737359437740,-926.31,0.00019771,2]
[349655493,1737359437749,-500.0,0.00019771,2]
[349655494,1737359437758,-1203.2,0.00019771,2]
[349655495,1737359437767,-500.0,0.00019771,2]
[349655496,1737359437776,-710.98,0.00019771,2]
[349655497,1737359437786,-638.30826305,0.00019771,2]
[349655498,1737359437795,-500.0,0.00019771,2]
[349655499,1737359437804,-2061.96,0.00019771,2]
[349655500,1737359437813,-1482.39,0.00019771,2]
[349655501,1737359437822,-805.2,0.00019771,2]
[349655502,1737359437834,-502.78833435,0.00019771,2]
[349655503,1737359437843,-500.0,0.00019771,2]
[349655504,1737359437852,-500.0,0.00019771,2]
[349655505,1737359437861,-548.96,0.00019771,2]
[349655506,1737359437869,-3448.0,0.00019771,2]
[349655507,1737359437878,-1177.2,0.00019771,2]
[349655508,1737359437887,-1792.51,0.00019771,2]
[349655509,1737359437897,-2000.07,0.00019771,2]
[349655510,1737359437906,-500.0,0.00019771,2]
[349655511,1737359437915,-500.0,0.00019771,2]
[349655513,1737359437925,-331.63006756,0.00019771,2]
[349655515,1737359437935,-951.51,0.00019771,2]
[349655516,1737359437944,-500.0,0.00019771,2]
[349655517,1737359437953,-1668.68,0.00019771,2]
[349655518,1737359437962,-500.0,0.00019771,2]
[349655519,1737359437972,-500.0,0.00019771,2]
[349655520,1737359437981,-500.0,0.00019771,2]
[349655521,1737359437990,-894.2,0.00019771,2]
[349655522,1737359438000,-907.24,0.00019771,2]
[349655523,1737359438009,-2517.18,0.00019771,2]
[349655524,1737359438019,-884.91,0.00019771,2]
[349655526,1737359438029,-500.0,0.00019771,2]
[349655528,1737359438039,-500.0,0.00019771,2]
[349655529,1737359438048,-500.0,0.00019771,2]
[349655530,1737359438058,-2474.52,0.00019771,2]
[349655531,1737359438067,-1054.83,0.00019771,2]
[349655532,1737359438080,-1387.21,0.00019771,2]
[349655533,1737359438089,-500.0,0.00019771,2]
[349655534,1737359438099,-620.97,0.00019771,2]
[349655535,1737359438109,-500.0,0.00019771,2]
[349655536,1737359438119,-500.0,0.00019771,2]
[349655537,1737359438128,-500.0,0.00019771,2]
[349655538,1737359438137,-500.0,0.00019771,2]
[349655539,1737359438147,-500.0,0.00019771,2]
[349655540,1737359438157,-500.0,0.00019771,2]
[349655541,1737359438167,-500.0,0.00019771,2]
[349655542,1737359438176,-500.0,0.00019771,2]
[349655543,1737359438186,-681.24,0.00019771,2]
[349655544,1737359438196,-1169.54,0.00019771,2]
[349655545,1737359438205,-500.0,0.00019771,2]
[349655546,1737359438215,-500.0,0.00019771,2]
[349655547,1737359438225,-500.0,0.00019772,2]
[349655548,1737359438234,-500.0,0.00019772,2]
[349655549,1737359438244,-594.3,0.00019772,2]
[349655550,1737359438253,-500.0,0.00019772,2]
[349655551,1737359438262,-500.0,0.00019772,2]
[349655552,1737359438272,-438.15451488,0.00019772,2]
[349655553,1737359438281,-522.87747856,0.00019772,2]
[349655554,1737359438290,-500.0,0.00019772,2]
[349655555,1737359438300,-500.0,0.00019772,2]
[349655556,1737359438309,-500.0,0.00019772,2]
[349655557,1737359438319,-500.0,0.00019772,2]
[349655558,1737359438332,-500.0,0.00019772,2]
[349655559,1737359438341,-500.0,0.00019772,2]
[349655560,1737359438351,-500.0,0.00019772,2]
[349655561,1737359438360,-746.35,0.00019772,2]
[349655562,1737359438369,-500.0,0.00019772,2]
[349655563,1737359438379,-510.6,0.00019772,2]
[349655564,1737359438389,-500.0,0.00019772,2]
[349655565,1737359438399,-403.82279563,0.00019772,2]
[349655566,1737359438412,-500.0,0.00019772,2]
[349655567,1737359438421,-500.0,0.00019772,2]
[349655568,1737359438431,-564.75919668,0.00019772,2]
[349655569,1737359438441,-500.0,0.00019772,2]
[349655570,1737359438451,-500.0,0.00019772,2]
[349655571,1737359438461,-500.0,0.00019772,2]
[349655572,1737359438471,-695.05,0.00019772,2]
[349655573,1737359438480,-500.0,0.00019772,2]
[349655574,1737359438490,-500.0,0.00019772,2]
[349655575,1737359438499,-500.0,0.00019772,2]
[349655576,1737359438509,-500.0,0.00019772,2]
[349655577,1737359438518,-500.0,0.00019772,2]
[349655578,1737359438528,-681.98,0.00019772,2]
[349655579,1737359438538,-956.85,0.00019772,2]
[349655580,1737359438547,-500.0,0.00019772,2]
[349655581,1737359438556,-500.0,0.00019772,2]
[349655582,1737359438566,-679.77,0.00019772,2]
[349655583,1737359438577,-1162.51,0.00019772,2]
[349655585,1737359438587,-500.0,0.00019772,2]
[349655587,1737359438597,-500.0,0.00019772,2]
[349655588,1737359438606,-500.0,0.00019772,2]
[349655590,1737359438616,-613.78,0.00019772,2]
[349655592,1737359438625,-500.0,0.00019772,2]
[349655594,1737359438634,-500.0,0.00019772,2]
[349655596,1737359438643,-998.73,0.00019772,2]
[349655598,1737359438653,-500.0,0.00019772,2]
[349655600,1737359438663,-500.0,0.00019772,2]
[349655602,1737359438672,-721.37,0.00019772,2]
[349655604,1737359438682,-803.78,0.00019772,2]
[349655606,1737359438691,-500.0,0.00019772,2]
[349655608,1737359438700,-500.0,0.00019772,2]
[349655610,1737359438709,-500.0,0.00019772,2]
[349655612,1737359438719,-564.33,0.00019772,2]
[349655614,1737359438727,-500.0,0.00019772,2]
[349655616,1737359438737,-559.49076725,0.00019772,2]
[349655618,1737359438747,-500.0,0.00019772,2]
[349655620,1737359438756,-503.83,0.00019772,2]
[349655622,1737359438765,-500.0,0.00019772,2]
[349655624,1737359438774,-500.0,0.00019772,2]
[349655626,1737359438783,-500.0,0.00019772,2]
[349655628,1737359438793,-876.13,0.00019772,2]
[349655630,1737359438802,-500.0,0.00019772,2]
[349655632,1737359438811,-500.0,0.00019772,2]
[349655634,1737359438820,-500.0,0.00019772,2]
[349655636,1737359438830,-500.0,0.00019772,2]
[349655637,1737359438840,-500.0,0.00019772,2]
[349655639,1737359438849,-500.0,0.00019772,2]
[349655641,1737359438858,-500.0,0.00019772,2]
[349655642,1737359438868,-591.89,0.00019772,2]
[349655643,1737359438877,-500.0,0.00019772,2]
[349655644,1737359438886,-500.0,0.00019772,2]
[349655645,1737359438896,-1170.98,0.00019772,2]
[349655646,1737359438905,-500.0,0.00019772,2]
[349655647,1737359438915,-500.0,0.00019772,2]
[349655648,1737359438924,-500.0,0.00019772,2]
[349655649,1737359438933,-500.0,0.00019772,2]
[349655650,1737359438943,-500.0,0.00019772,2]
[349655651,1737359438953,-500.0,0.00019772,2]
[349655652,1737359438963,-560.88786212,0.00019772,2]
[349655653,1737359438972,-500.0,0.00019772,2]
[349655654,1737359438981,-1457.34,0.00019772,2]
[349655655,1737359438991,-1192.12,0.00019772,2]
[349655656,1737359439001,-1630.39,0.00019772,2]
[349655657,1737359439010,-500.0,0.00019772,2]
[349655658,1737359439019,-1752.84,0.00019772,2]
[349655659,1737359439029,-500.0,0.00019772,2]
[349655660,1737359439039,-500.0,0.00019772,2]
[349655661,1737359439049,-500.0,0.00019772,2]
[349655662,1737359439058,-776.12,0.00019772,2]
[349655663,1737359439068,-798.28,0.00019772,2]
[349655664,1737359439078,-500.0,0.00019772,2]
[349655665,1737359439088,-500.0,0.00019772,2]
[349655666,1737359439097,-500.0,0.00019772,2]
[349655667,1737359439107,-500.0,0.00019772,2]
[349655668,1737359439117,-500.0,0.00019772,2]
[349655669,1737359439127,-621.6,0.00019772,2]
[349655670,1737359439136,-500.0,0.00019772,2]
[349655671,1737359439146,-500.0,0.00019772,2]
[349655672,1737359439155,-1138.23,0.00019772,2]
[349655673,1737359439164,-500.0,0.00019772,2]
[349655674,1737359439173,-518.30301328,0.00019772,2]
[349655675,1737359439183,-873.64,0.00019772,2]
[349655676,1737359439303,-511.53706025,0.00019772,2]
[349655677,1737359439312,-500.0,0.00019772,2]
[349655678,1737359439321,-500.0,0.00019772,2]
[349655679,1737359439333,-500.0,0.00019772,2]
[349655680,1737359439343,-302.4569468,0.00019772,2]
[349655681,1737359439352,-467.38564417,0.00019772,2]
[349655682,1737359439362,-500.0,0.00019772,2]